bitfinex-derivatives/quotes_BTCF0:USTF0_20251204
["timestamp","ask_amount","ask_price","bid_price","bid_amount"]
[1764857561360,0.4583669,92697.0,92696.0,0.0887]
[1764857562881,0.4583669,92697.0,92696.0,0.0867]
[1764857563482,0.4583669,92697.0,92696.0,0.0877]
[1764857565680,0.4583669,92697.0,92696.0,0.001]
[1764857565681,0.5083669,92697.0,92696.0,0.001]
[1764857566677,0.4583669,92697.0,92696.0,0.08252]
[1764857566978,0.4583669,92697.0,92696.0,0.08152]
[1764857567177,0.4593669,92697.0,92696.0,0.08152]
[1764857567377,0.5093669,92697.0,92696.0,0.08152]
[1764857567574,0.4593669,92697.0,92696.0,0.08152]
[1764857567780,0.4498,92697.0,92696.0,0.08152]
[1764857567977,0.089,92697.0,92696.0,0.08152]
[1764857568178,0.001,92697.0,92696.0,0.08152]
[1764857568581,0.001,92697.0,92696.0,0.58152]
[1764857569173,0.001,92697.0,92696.0,0.62024045]
[1764857569372,0.08346,92697.0,92696.0,0.58152]
[1764857569582,0.08246,92697.0,92696.0,0.58152]
[1764857570080,0.0932461,92704.0,92703.0,0.0923062]
[1764857570780,0.08246,92704.0,92703.0,0.0923062]
[1764857572879,0.10665,92701.0,92700.0,0.0502465]
[1764857573088,0.10907002,92701.0,92700.0,0.0502465]
[1764857573287,0.0932465,92701.0,92700.0,0.13103565]
[1764857573690,0.08246,92701.0,92700.0,0.13103565]
[1764857573976,0.08262181,92706.0,92705.0,0.092306]
[1764857574174,0.08504183,92706.0,92705.0,0.092306]
[1764857574383,0.08262181,92706.0,92705.0,0.092306]
[1764857574577,0.13262181,92706.0,92705.0,0.092306]
[1764857574778,0.08262181,92706.0,92705.0,0.092306]
[1764857575372,0.12262181,92706.0,92705.0,0.08152]
[1764857575578,0.12262181,92706.0,92705.0,0.03946]
[1764857576078,0.13362181,92706.0,92705.0,0.03946]
[1764857576788,0.10665,92701.0,92700.0,0.03878271]
[1764857576982,0.08246,92697.0,92696.0,0.03878271]
[1764857577188,0.0932474,92693.0,92692.0,0.0107874]
[1764857577380,0.09566742,92693.0,92692.0,0.0107874]
[1764857577584,0.09566742,92693.0,92692.0,0.0502474]
[1764857578687,0.09566742,92693.0,92692.0,0.5502474]
[1764857578883,0.09566742,92693.0,92692.0,0.53946]
[1764857579092,0.09666742,92693.0,92692.0,0.54246]
[1764857579278,0.14666742,92693.0,92692.0,0.503]
[1764857579482,0.50746742,92693.0,92692.0,0.503]
[1764857579878,0.50746742,92693.0,92692.0,0.004]
[1764857580186,0.50646742,92693.0,92692.0,0.002]
[1764857580387,0.45646742,92693.0,92692.0,0.002]
[1764857580583,0.50646742,92693.0,92692.0,0.002]
[1764857580788,0.50646742,92693.0,92692.0,0.001]
[1764857582083,0.093248,92688.0,92687.0,0.03896075]
[1764857582288,0.09566802,92688.0,92687.0,0.03896075]
[1764857582594,0.09566802,92688.0,92687.0,0.07842075]
[1764857583091,0.13566802,92688.0,92687.0,0.03896075]
[1764857583281,0.13566802,92688.0,92687.0,0.00016181]
[1764857585292,0.13766802,92688.0,92687.0,0.00016181]
[1764857585890,0.13866802,92688.0,92687.0,0.00116181]
[1764857586090,0.13966802,92688.0,92687.0,0.00116181]
[1764857586683,0.13966802,92688.0,92687.0,0.08136181]
[1764857586684,0.09966802,92688.0,92687.0,0.08136181]
[1764857586987,0.09966802,92688.0,92687.0,0.10402181]
[1764857587499,0.004,92688.0,92687.0,0.10402181]
[1764857588081,0.0107863,92703.0,92701.0,0.02266]
[1764857588288,0.0107863,92703.0,92702.0,0.0802]
[1764857588489,0.0107863,92703.0,92702.0,0.090986]
[1764857588686,0.01094781,92706.0,92705.0,0.090986]
[1764857588985,0.00016181,92706.0,92705.0,0.090986]
[1764857589295,0.07937181,92706.0,92705.0,0.090986]
[1764857590382,0.00016181,92706.0,92705.0,0.090986]
[1764857593001,0.04201181,92706.0,92705.0,0.090986]
[1764857593194,0.00016181,92706.0,92705.0,0.090986]
[1764857595294,0.04201181,92706.0,92705.0,0.090986]
[1764857595496,0.09257773,92706.0,92705.0,0.090986]
[1764857596399,0.04201181,92706.0,92705.0,0.090986]
[1764857598198,0.07937181,92706.0,92705.0,0.090986]
[1764857598601,0.00016181,92706.0,92705.0,0.090986]
[1764857601597,0.07937181,92706.0,92705.0,0.090986]
[1764857603201,0.12937181,92706.0,92705.0,0.0802]
[1764857603402,0.12937181,92706.0,92705.0,0.04085]
[1764857603720,0.0899963,92702.0,92701.0,0.0802]
[1764857603910,0.4507963,92702.0,92701.0,0.0802]
[1764857604205,0.4507963,92702.0,92701.0,0.10286]
[1764857604995,0.4507963,92702.0,92701.0,0.10486]
[1764857607197,0.44001,92702.0,92701.0,0.10486]
[1764857607402,0.3608,92702.0,92701.0,0.10486]
[1764857608506,0.40265,92702.0,92701.0,0.10486]
[1764857608707,0.44001,92702.0,92701.0,0.10486]
[1764857609809,0.40265,92702.0,92701.0,0.10486]
[1764857610406,0.44001,92702.0,92701.0,0.04285]
[1764857611400,0.4507963,92702.0,92701.0,0.10486]
[1764857611599,0.44001,92702.0,92701.0,0.10486]
[1764857611807,0.3608,92702.0,92701.0,0.10486]
[1764857612911,0.40265,92702.0,92701.0,0.10486]
[1764857614509,0.3608,92702.0,92701.0,0.10486]
[1764857614710,0.3608,92702.0,92701.0,0.14361599]
[1764857615112,0.3608,92702.0,92701.0,0.10486]
[1764857615805,0.07084181,92706.0,92705.0,0.06999]
[1764857616910,0.07084181,92706.0,92705.0,0.11955327]
[1764857617303,0.07084181,92706.0,92705.0,0.080776]
[1764857617602,0.00016181,92706.0,92705.0,0.080776]
[1764857617807,0.00016181,92706.0,92705.0,0.081776]
[1764857618817,0.00016181,92706.0,92705.0,0.581776]
[1764857619110,0.36024351,92711.0,92710.0,0.0807754]
[1764857619306,0.33522107,92711.0,92710.0,0.0807754]
[1764857619500,0.0814647,92717.0,92716.0,0.0807747]
[1764857619700,0.081464,92723.0,92722.0,0.100404]
[1764857619918,0.07068,92723.0,92722.0,0.100404]
[1764857620716,0.07068,92723.0,92722.0,0.08962]
[1764857620917,0.07168,92723.0,92722.0,0.08962]
[1764857621114,0.0814644,92719.0,92718.0,0.10878138]
[1764857621313,0.07079,92717.0,92716.0,0.08523608]
[1764857621519,0.07079,92717.0,92716.0,0.03879138]
[1764857621814,0.07079,92717.0,92716.0,0.10976138]
[1764857622019,0.0815744,92719.0,92718.0,0.07097]
[1764857623711,0.0825744,92719.0,92718.0,0.07097]
[1764857623915,0.004,92719.0,92718.0,0.07097]
[1764857624920,0.004,92719.0,92718.0,0.10976138]
[1764857625220,0.07479,92719.0,92718.0,0.07097]
[1764857625415,0.07179,92719.0,92718.0,0.07097]
[1764857625616,0.07179,92719.0,92718.0,0.07497]
[1764857626412,0.07179,92719.0,92718.0,0.07597]
[1764857626413,0.07079,92719.0,92718.0,0.07597]
[1764857626819,0.3608,92720.0,92719.0,0.0817544]
[1764857627016,0.3608,92720.0,92719.0,0.12054578]
[1764857627222,0.3608,92720.0,92719.0,0.0817544]
[1764857627721,0.3608,92720.0,92719.0,0.5817544]
[1764857628107,0.3608,92720.0,92719.0,0.5827544]
[1764857628412,0.3608,92720.0,92719.0,0.5867544]
[1764857630818,0.39713,92720.0,92719.0,0.5867544]
[1764857631125,0.3608,92720.0,92719.0,0.5867544]
[1764857633020,0.39713,92720.0,92719.0,0.5867544]
[1764857633218,0.3608,92720.0,92719.0,0.5867544]
[1764857634426,0.39713,92720.0,92719.0,0.5867544]
[1764857635014,0.39713,92720.0,92719.0,1.0888744]
[1764857638125,0.39713,92720.0,92719.0,0.5867544]
[1764857638325,0.39713,92720.0,92719.0,1.0888344]
[1764857638822,0.43159,92720.0,92719.0,1.0888344]
[1764857639619,0.4423742,92720.0,92719.0,1.0888344]
[1764857639823,0.4423742,92720.0,92719.0,0.5867544]
[1764857640024,0.4923742,92720.0,92719.0,0.5157844]
[1764857640228,0.4423742,92720.0,92719.0,0.5157844]
[1764857641237,0.4423742,92720.0,92719.0,0.55451338]
[1764857641822,0.4823742,92720.0,92719.0,0.5157844]
[1764857642217,0.4823742,92720.0,92719.0,0.5107844]
[1764857642421,0.4823742,92720.0,92719.0,0.5117844]
[1764857642932,0.4823742,92720.0,92719.0,0.0107844]
[1764857643133,0.4823742,92720.0,92719.0,0.0117844]
[1764857644828,0.4823742,92720.0,92719.0,0.001]
[1764857645137,0.4923742,92720.0,92719.0,0.001]
[1764857645537,0.4423742,92720.0,92719.0,0.001]
[1764857645733,0.0809547,92716.0,92715.0,0.03872898]
[1764857645934,0.07017,92715.0,92714.0,0.03872898]
[1764857646237,0.12017,92715.0,92714.0,0.03872898]
[1764857647234,0.0809549,92714.0,92713.0,0.01094681]
[1764857647436,0.13337492,92714.0,92713.0,0.01094681]
[1764857648530,0.13337492,92714.0,92713.0,0.51094681]
[1764857649032,0.13337492,92714.0,92713.0,0.51294681]
[1764857649938,0.49417492,92714.0,92713.0,0.55174536]
[1764857650441,0.49417492,92714.0,92713.0,0.05174536]
[1764857650829,0.44417492,92714.0,92713.0,0.12129536]
[1764857651537,0.08337492,92714.0,92713.0,0.12129536]
[1764857651744,0.07259002,92714.0,92713.0,0.12129536]
[1764857654648,0.07259002,92714.0,92713.0,0.08249681]
[1764857655033,0.03649,92714.0,92713.0,0.08249681]
[1764857655238,0.0809545,92718.0,92717.0,0.0803346]
[1764857655434,0.0809545,92718.0,92717.0,0.11912043]
[1764857656545,0.0809545,92718.0,92717.0,0.12012043]
[1764857659744,0.0472745,92718.0,92717.0,0.12012043]
[1764857660158,0.0809545,92718.0,92717.0,0.0813346]
[1764857665966,0.1309545,92718.0,92717.0,0.001]
[1764857667372,0.1319545,92718.0,92717.0,0.001]
[1764857667568,0.0809548,92715.0,92714.0,0.03880129]
[1764857667768,0.13337482,92715.0,92714.0,0.03880129]
[1764857669372,0.13337482,92715.0,92713.0,0.0389783]
[1764857669373,0.07017,92714.0,92713.0,0.0389783]
[1764857669563,0.57339002,92714.0,92713.0,0.00016181]
[1764857671370,0.57439002,92714.0,92713.0,0.00016181]
[1764857675669,0.089986,92705.0,92704.0,0.03881649]
[1764857675870,0.072957,92696.0,92695.0,0.10033649]
[1764857676068,0.43617702,92696.0,92695.0,0.10033649]
[1764857676269,0.43617702,92696.0,92695.0,0.06152]
[1764857676765,0.43617702,92696.0,92695.0,0.03218]
[1764857677071,0.06217,92694.0,92693.0,0.07099649]
[1764857677268,0.06459002,92694.0,92693.0,0.06152]
[1764857677468,0.06459002,92694.0,92693.0,0.0723074]
[1764857677669,0.06459002,92694.0,92693.0,0.06152]
[1764857678275,0.06459002,92694.0,92693.0,0.06352]
[1764857678577,0.11459002,92694.0,92693.0,0.06352]
[1764857679483,0.11459002,92694.0,92693.0,0.002]
[1764857679982,0.11459002,92694.0,92693.0,0.06352]
[1764857680380,0.11459002,92694.0,92693.0,0.06252]
[1764857681074,0.06459002,92694.0,92693.0,0.06252]
[1764857681276,0.11459002,92694.0,92693.0,0.06252]
[1764857682078,0.06459002,92694.0,92693.0,0.06252]
[1764857682872,0.06217,92694.0,92693.0,0.06252]
[1764857683988,0.00016181,92705.0,92693.0,0.06252]
[1764857683989,0.05545,92699.0,92698.0,0.0684965]
[1764857684180,0.0662363,92703.0,92702.0,0.0684963]
[1764857684385,0.06865632,92703.0,92702.0,0.0684963]
[1764857685583,0.06965632,92703.0,92702.0,0.0684963]
[1764857686382,0.06865632,92703.0,92702.0,0.0684963]
[1764857686679,0.06965632,92703.0,92702.0,0.0684963]
[1764857687080,0.0662363,92703.0,92702.0,0.0704963]
[1764857689186,0.0662363,92703.0,92702.0,0.0684963]
[1764857689379,0.0662363,92703.0,92702.0,0.0694963]
[1764857689770,0.0662363,92703.0,92702.0,0.0684963]
[1764857689975,0.0662363,92703.0,92702.0,0.0704963]
[1764857692381,0.0662363,92703.0,92702.0,0.05971]
[1764857693086,0.0662363,92703.0,92702.0,0.0704963]
[1764857696491,0.0662363,92703.0,92702.0,0.002]
[1764857696897,0.0662363,92703.0,92702.0,0.05971]
[1764857697489,0.0107863,92703.0,92702.0,0.05971]
[1764857697792,0.0662363,92703.0,92702.0,0.05771]
[1764857697990,0.0390563,92703.0,92702.0,0.05871]
[1764857698185,0.0662363,92703.0,92702.0,0.05871]
[1764857699992,0.0662363,92703.0,92702.0,0.05971]
[1764857700388,0.00016181,92705.0,92704.0,0.05771]
[1764857700884,0.00016181,92705.0,92704.0,0.11589784]
[1764857701596,0.00026961,92726.0,92716.0,0.0684947]
[1764857701799,0.3608,92717.0,92716.0,0.0684947]
[1764857702096,0.41625,92717.0,92716.0,0.0684947]
[1764857702282,0.0107852,92713.0,92712.0,0.0399552]
[1764857702481,0.06865522,92713.0,92712.0,0.0399552]
[1764857702688,0.06865522,92713.0,92712.0,0.02917]
[1764857702894,0.06865522,92713.0,92712.0,0.05771]
[1764857704991,0.0684253,92711.0,92710.0,0.03876967]
[1764857705292,0.0684253,92711.0,92700.0,0.01668]
[1764857705293,0.0684261,92704.0,92703.0,0.06655801]
[1764857705486,0.07084612,92704.0,92703.0,0.10532768]
[1764857705687,0.07084612,92704.0,92703.0,0.06655801]
[1764857706587,0.07084612,92704.0,92703.0,0.06855801]
[1764857706787,0.07084612,92704.0,92703.0,0.00216181]
[1764857706985,0.07084612,92704.0,92703.0,0.00016181]
[1764857707182,0.07084612,92704.0,92703.0,0.02957181]
[1764857707783,0.07084612,92704.0,92703.0,0.05677181]
[1764857709198,0.07084612,92704.0,92703.0,0.00116181]
[1764857709397,0.07084612,92704.0,92703.0,0.00016181]
[1764857711902,0.0684277,92690.0,92689.0,0.03876967]
[1764857712095,0.068429,92679.0,92676.0,0.05277521]
[1764857712301,0.0684294,92676.0,92675.0,0.0664987]
[1764857712507,0.07084942,92676.0,92675.0,0.0664987]
[1764857712809,0.07084942,92676.0,92675.0,0.10526837]
[1764857713199,0.06006002,92676.0,92675.0,0.0664987]
[1764857713692,0.06006002,92676.0,92675.0,0.0674987]
[1764857713900,0.06006002,92676.0,92675.0,0.07988471]
[1764857714100,0.068429,92680.0,92679.0,0.066399]
[1764857715000,0.0107886,92683.0,92682.0,0.0663987]
[1764857715207,0.0396386,92683.0,92682.0,0.0663987]
[1764857715508,0.0684286,92683.0,92682.0,0.0663987]
[1764857716407,0.0694286,92683.0,92682.0,0.0663987]
[1764857717110,0.0684286,92683.0,92682.0,0.0683987]
[1764857717604,0.0684286,92683.0,92682.0,0.05761]
[1764857718708,0.0684286,92683.0,92682.0,0.05661]
[1764857719109,0.0684286,92683.0,92682.0,0.02941]
[1764857719310,0.0684286,92683.0,92682.0,0.02841]
[1764857719902,0.1184286,92683.0,92682.0,0.02841]
[1764857720208,0.2084286,92683.0,92682.0,0.001]
[1764857720608,0.0684294,92676.0,92675.0,0.01248531]
[1764857720814,0.12084942,92676.0,92675.0,0.01248531]
[1764857721711,0.07084942,92676.0,92675.0,0.01248531]
[1764857721906,0.12084942,92676.0,92675.0,0.01248531]
[1764857722816,0.12084942,92676.0,92675.0,0.0010993]
[1764857723110,0.0684304,92667.0,92666.0,0.00016181]
[1764857723415,0.57165042,92667.0,92666.0,0.00016181]
[1764857724110,0.57174016,92667.0,92666.0,0.01244795]
[1764857724315,0.0684318,92655.0,92654.0,0.0664019]
[1764857724616,0.0684318,92655.0,92654.0,0.07876168]
[1764857724911,0.0684318,92655.0,92654.0,0.04076978]
[1764857725113,0.1184318,92655.0,92654.0,0.04076978]
[1764857725308,0.1084318,92655.0,92654.0,0.04076978]
[1764857725508,0.1084318,92655.0,92654.0,0.06896978]
[1764857725817,0.0684318,92655.0,92654.0,0.06896978]
[1764857726005,0.0694318,92655.0,92654.0,0.07496978]
[1764857726201,0.1194318,92655.0,92654.0,0.07496978]
[1764857727301,0.0694318,92655.0,92654.0,0.07496978]
[1764857727517,0.1194318,92655.0,92654.0,0.07496978]
[1764857727702,0.0694318,92655.0,92654.0,0.01935978]
[1764857727906,0.1194318,92655.0,92654.0,0.01935978]
[1764857728319,0.1194318,92655.0,92654.0,0.04776978]
[1764857729011,0.1194318,92655.0,92654.0,0.07496978]
[1764857730518,0.1194318,92655.0,92654.0,0.01935978]
[1764857733009,0.0694318,92655.0,92654.0,0.01935978]
[1764857733211,0.0694318,92655.0,92654.0,0.07496978]
[1764857733405,0.001,92655.0,92654.0,0.07496978]
[1764857733912,0.00016181,92664.0,92663.0,0.0665809]
[1764857735012,0.00016181,92664.0,92663.0,0.0695809]
[1764857735213,0.00016181,92664.0,92663.0,0.0705809]
[1764857737624,0.00258183,92664.0,92663.0,0.0705809]
[1764857737922,0.00016181,92664.0,92663.0,0.0705809]
[1764857738122,0.00258183,92664.0,92663.0,0.0705809]
[1764857738514,0.00016181,92664.0,92663.0,0.0705809]
[1764857739723,0.00016181,92664.0,92663.0,0.4313809]
[1764857740316,8.974e-05,92667.0,92666.0,0.0839205]
[1764857740825,0.0107886,92683.0,92676.0,0.0667194]
[1764857741425,0.0107887,92682.0,92676.0,0.0667194]
[1764857741723,0.36084409,92677.0,92676.0,0.0667194]
[1764857742525,0.36084409,92677.0,92676.0,0.5667194]
[1764857743926,0.36084409,92677.0,92676.0,0.5717194]
[1764857744324,4.09e-06,92677.0,92676.0,0.5717194]
[1764857744519,0.00016181,92686.0,92685.0,0.0667183]
[1764857744719,0.00016181,92686.0,92685.0,0.4275183]
[1764857745019,0.3608,92706.0,92705.0,0.066716]
[1764857745712,0.41734,92706.0,92705.0,0.066716]
[1764857746318,0.05654,92706.0,92705.0,0.066716]
[1764857746926,0.10754,92706.0,92705.0,0.066716]
[1764857747325,0.10054,92706.0,92705.0,0.066716]
[1764857747521,0.11054,92706.0,92705.0,0.05593]
[1764857747720,0.06054,92706.0,92705.0,0.05593]
[1764857747921,0.11054,92706.0,92705.0,0.05593]
[1764857748120,0.06054,92706.0,92705.0,0.05593]
[1764857748317,0.05754,92706.0,92705.0,0.05593]
[1764857748528,0.05754,92706.0,92705.0,0.05693]
[1764857749123,0.05654,92706.0,92705.0,0.05693]
[1764857749825,0.10654,92706.0,92705.0,0.05693]
[1764857750035,0.05654,92706.0,92705.0,0.05693]
[1764857750925,0.10654,92706.0,92705.0,0.05693]
[1764857751126,0.05654,92706.0,92705.0,0.05693]
[1764857754636,0.05654,92706.0,92705.0,0.05593]
[1764857754848,0.05654,92706.0,92705.0,0.05693]
[1764857757135,0.3608,92710.0,92705.0,0.05693]
[1764857757340,0.03977661,92715.0,92714.0,0.05848]
[1764857757539,0.05917183,92715.0,92714.0,0.05848]
[1764857758032,0.05675181,92715.0,92714.0,0.05848]
[1764857758235,0.00016181,92715.0,92714.0,0.05848]
[1764857758539,0.00116181,92715.0,92714.0,0.05848]
[1764857758933,0.00116181,92715.0,92714.0,0.07058126]
[1764857759641,0.10875181,92715.0,92714.0,0.07058126]
[1764857759832,0.05875181,92715.0,92714.0,0.07058126]
[1764857760030,0.10875181,92715.0,92714.0,0.07058126]
[1764857760629,0.00216181,92715.0,92714.0,0.07058126]
[1764857761338,0.03099181,92715.0,92714.0,0.07058126]
[1764857764243,0.00216181,92715.0,92714.0,0.07058126]
[1764857765236,0.00116181,92715.0,92714.0,0.07058126]
[1764857766528,0.00016181,92715.0,92714.0,0.07058126]
[1764857767743,0.05774183,92715.0,92714.0,0.07058126]
[1764857767939,0.10532181,92715.0,92714.0,0.07058126]
[1764857768140,0.05532181,92715.0,92714.0,0.07058126]
[1764857768643,0.02795181,92715.0,92714.0,0.07058126]
[1764857769541,0.10532181,92715.0,92714.0,0.07058126]
[1764857769736,0.05532181,92715.0,92714.0,0.07058126]
[1764857769936,0.10532181,92715.0,92714.0,0.07058126]
[1764857770138,0.05532181,92715.0,92714.0,0.07058126]
[1764857770542,0.09532181,92715.0,92714.0,0.07058126]
[1764857770845,0.05532181,92715.0,92714.0,0.07058126]
[1764857771433,0.09532181,92715.0,92714.0,0.07058126]
[1764857771635,0.05532181,92715.0,92714.0,0.07058126]
[1764857772638,0.10532181,92715.0,92714.0,0.07058126]
[1764857772840,0.46612181,92715.0,92714.0,0.01210126]
[1764857773042,0.0107856,92710.0,92708.0,0.0668156]
[1764857773240,0.05516,92709.0,92708.0,0.0668156]
[1764857773542,0.09516,92709.0,92708.0,0.0668156]
[1764857773738,0.05516,92709.0,92708.0,0.0668156]
[1764857773940,0.05516,92709.0,92708.0,0.08073554]
[1764857774144,0.10516,92709.0,92708.0,0.08073554]
[1764857774345,0.10516,92709.0,92708.0,0.08173554]
[1764857774746,0.05516,92709.0,92708.0,0.08173554]
[1764857775748,0.05516,92709.0,92708.0,0.08073554]
[1764857775948,0.05516,92709.0,92708.0,0.08173554]
[1764857777048,0.10516,92709.0,92708.0,0.08173554]
[1764857778139,0.10516,92709.0,92708.0,0.01491994]
[1764857778346,0.10516,92709.0,92708.0,0.001]
[1764857778851,0.05516,92709.0,92708.0,0.05703]
[1764857779045,0.10516,92709.0,92708.0,0.05703]
[1764857779452,0.10716,92709.0,92708.0,0.05603]
[1764857779651,0.10816,92709.0,92708.0,0.05603]
[1764857779948,0.05816,92709.0,92708.0,0.05603]
[1764857780151,0.10616,92709.0,92708.0,0.05603]
[1764857780352,0.10616,92709.0,92708.0,0.05703]
[1764857780554,0.10516,92709.0,92708.0,0.05703]
[1764857784458,0.10516,92709.0,92708.0,0.001]
[1764857784857,0.19516,92709.0,92708.0,0.001]
[1764857785558,0.05516,92698.0,92697.0,0.0668168]
[1764857785759,0.10516,92698.0,92697.0,0.080181]
[1764857786357,0.1059468,92698.0,92697.0,0.0133642]
[1764857786564,0.1059468,92698.0,92696.0,0.00016181]
[1764857786565,0.05516,92697.0,92696.0,0.00016181]
[1764857786761,0.05758002,92697.0,92696.0,0.00016181]
[1764857786962,0.10758002,92697.0,92696.0,0.00016181]
[1764857787162,0.10758002,92697.0,92696.0,0.0411522]
[1764857788567,0.46838002,92697.0,92696.0,0.0411522]
[1764857788955,0.46838002,92697.0,92696.0,0.0421522]
[1764857789265,0.45838002,92697.0,92696.0,0.0421522]
[1764857789964,0.46838002,92697.0,92696.0,0.0421522]
[1764857791164,0.45838002,92697.0,92696.0,0.0421522]
[1764857791558,0.46838002,92697.0,92696.0,0.0421522]
[1764857791957,0.41838002,92697.0,92696.0,0.0421522]
[1764857792270,0.45838002,92697.0,92696.0,0.0421522]
[1764857792568,0.46838002,92697.0,92696.0,0.0706122]
[1764857793378,0.45838002,92697.0,92696.0,0.0706122]
[1764857795170,0.46838002,92697.0,92696.0,0.0706122]
[1764857795468,0.45838002,92697.0,92696.0,0.0706122]
[1764857795660,0.46838002,92697.0,92696.0,0.0706122]
[1764857796067,0.46838002,92697.0,92696.0,0.0145822]
[1764857796265,0.55838002,92697.0,92696.0,0.0145822]
[1764857797364,0.55838002,92697.0,92696.0,0.0428422]
[1764857797670,0.46838002,92697.0,92696.0,0.0428422]
[1764857798469,0.10758002,92697.0,92696.0,0.0428422]
[1764857798669,0.46838002,92697.0,92696.0,0.0428422]
[1764857798860,0.46838002,92697.0,92696.0,0.0145822]
[1764857799463,0.41838002,92697.0,92696.0,0.0428422]
[1764857799664,0.41838002,92697.0,92696.0,0.0831992]
[1764857799867,0.46838002,92697.0,92696.0,0.0831992]
[1764857800068,0.45838002,92697.0,92696.0,0.0831992]
[1764857800769,0.46838002,92697.0,92696.0,0.0724122]
[1764857802572,0.55838002,92697.0,92696.0,0.0724122]
[1764857802767,0.55838002,92697.0,92696.0,0.0428422]
[1764857802965,0.55838002,92697.0,92696.0,0.0145822]
[1764857803567,0.0686791,92678.0,92677.0,0.03874344]
[1764857803774,0.0686791,92678.0,92673.0,0.05800423]
[1764857803775,0.05789,92672.0,92671.0,0.0703799]
[1764857803966,0.10789,92672.0,92671.0,0.12314053]
[1764857804166,0.10789,92672.0,92671.0,0.08439709]
[1764857804364,0.09789,92672.0,92671.0,0.08439709]
[1764857804760,0.05789,92672.0,92671.0,0.08439709]
[1764857805376,0.05889,92672.0,92671.0,0.09139709]
[1764857805764,0.05889,92672.0,92671.0,0.09339709]
[1764857806771,0.001,92672.0,92671.0,0.13214053]
[1764857807066,0.001,92672.0,92671.0,0.09339709]
[1764857807468,0.00016181,92681.0,92680.0,0.0107889]
[1764857807665,0.00016181,92681.0,92680.0,0.3715889]
[1764857808464,0.00016181,92681.0,92680.0,0.0107889]
[1764857808664,0.00016181,92681.0,92680.0,0.0117889]
[1764857808873,0.00116181,92681.0,92680.0,0.0157889]
[1764857809372,0.04116181,92681.0,92680.0,0.05455865]
[1764857809572,0.05116181,92681.0,92680.0,0.05455865]
[1764857810079,0.00116181,92681.0,92680.0,0.05455865]
[1764857810268,0.05116181,92681.0,92680.0,0.05455865]
[1764857812376,0.05116181,92681.0,92680.0,0.0157889]
[1764857812871,0.05116181,92681.0,92680.0,0.005]
[1764857813073,0.14116181,92681.0,92680.0,0.005]
[1764857813275,0.17646181,92681.0,92680.0,0.005]
[1764857814071,0.07646181,92681.0,92680.0,0.005]
[1764857814378,0.08646181,92681.0,92680.0,0.005]
[1764857818474,0.17646181,92681.0,92680.0,0.005]
[1764857819081,0.08646181,92681.0,92680.0,0.005]
[1764857820273,0.03646181,92681.0,92680.0,0.005]
[1764857820773,0.08646181,92681.0,92680.0,0.005]
[1764857821175,0.03646181,92681.0,92680.0,0.005]
[1764857821469,0.00116181,92681.0,92680.0,0.005]
[1764857822178,0.00116181,92681.0,92680.0,0.04377816]
[1764857822382,0.00116181,92681.0,92680.0,0.005]
[1764857826783,0.00116181,92681.0,92680.0,0.06314091]
[1764857826985,0.00116181,92681.0,92680.0,0.005]
[1764857829882,0.3608,92702.0,92694.0,0.0107873]
[1764857830187,0.3608,92702.0,92701.0,0.0107865]
[1764857830376,0.3608,92702.0,92701.0,0.04956699]
[1764857830573,0.3608,92715.0,92714.0,0.0107849]
[1764857830772,0.3608,92721.0,92720.0,0.0107842]
[1764857833084,0.3618,92721.0,92720.0,0.0107842]
[1764857833281,0.3638,92721.0,92720.0,0.0107842]
[1764857840290,0.4038,92721.0,92720.0,0.0107842]
[1764857840592,0.3638,92721.0,92720.0,0.0107842]
[1764857845084,0.4138,92721.0,92720.0,0.0107842]
[1764857847097,0.3638,92721.0,92720.0,0.0107842]
[1764857847397,0.4138,92721.0,92720.0,0.0107842]
[1764857849186,0.3638,92721.0,92717.0,0.0107845]
[1764857849384,0.01320512,92718.0,92717.0,0.0107845]
[1764857849688,0.05320512,92718.0,92717.0,0.0107845]
[1764857851094,0.01420512,92718.0,92717.0,0.0107845]
[1764857851293,0.06420512,92718.0,92717.0,0.0107845]
[1764857852098,0.06520512,92718.0,92717.0,0.0107845]
[1764857853291,0.01520512,92718.0,92717.0,0.0107845]
[1764857853796,0.06520512,92718.0,92717.0,0.0107845]
[1764857854197,0.0107858,92707.0,92706.0,0.0107858]
[1764857854394,0.0607858,92707.0,92706.0,0.0107858]
[1764857854990,0.0107858,92707.0,92706.0,0.0107858]
[1764857855296,0.0607858,92707.0,92705.0,0.00016181]
[1764857855598,0.00242002,92706.0,92705.0,0.00016181]
[1764857855792,0.05242002,92706.0,92705.0,0.00016181]
[1764857855987,0.04242002,92706.0,92705.0,0.00016181]
[1764857856703,0.04242002,92706.0,92705.0,0.00216181]
[1764857857002,0.05242002,92706.0,92705.0,0.00216181]
[1764857857302,0.05342002,92706.0,92705.0,0.00016181]
[1764857858796,0.00342002,92706.0,92705.0,0.00016181]
[1764857859405,0.04342002,92706.0,92705.0,0.00016181]
[1764857859601,0.00342002,92706.0,92705.0,0.00016181]
[1764857859808,0.05342002,92706.0,92705.0,0.00016181]
[1764857860307,0.05242002,92706.0,92705.0,0.00016181]
[1764857862712,0.05242002,92706.0,92705.0,0.00116181]
[1764857863116,0.05242002,92706.0,92705.0,0.00016181]
[1764857863810,0.05242002,92706.0,92705.0,0.00116181]
[1764857868111,0.14242002,92706.0,92705.0,0.00116181]
[1764857868313,0.05242002,92706.0,92705.0,0.00116181]
[1764857868497,0.14242002,92706.0,92705.0,0.00116181]
[1764857868904,0.14242002,92706.0,92690.0,0.0107877]
[1764857868905,0.0107874,92693.0,92690.0,0.0107877]
[1764857869214,0.36322002,92691.0,92690.0,0.0107877]
[1764857869402,0.41322002,92691.0,92690.0,0.0107877]
[1764857869905,0.00016181,92700.0,92699.0,0.0107867]
[1764857870403,0.00016181,92700.0,92699.0,0.4107867]
[1764857870604,0.00016181,92700.0,92699.0,0.0107867]
[1764857870910,0.3608,92713.0,92712.0,0.0816552]
[1764857871110,0.41883,92713.0,92712.0,0.0816552]
[1764857871811,0.45883,92713.0,92712.0,0.0107852]
[1764857872010,0.46883,92713.0,92712.0,0.0107852]
[1764857872312,0.0107858,92710.0,92709.0,0.0670554]
[1764857872508,0.1188158,92710.0,92709.0,0.0670554]
[1764857873018,0.1188158,92710.0,92709.0,0.0390254]
[1764857873510,0.0107859,92707.0,92704.0,0.03871361]
[1764857873715,0.05803,92704.0,92703.0,0.00016181]
[1764857874007,0.11045002,92704.0,92703.0,0.00016181]
[1764857874407,0.47125002,92704.0,92703.0,0.00016181]
[1764857874811,0.06045002,92704.0,92703.0,0.05643181]
[1764857875005,0.0688154,92711.0,92710.0,0.0670554]